bitfinex-derivatives/quotes_BNBF0:USTF0_20250907
["timestamp","ask_amount","ask_price","bid_price","bid_amount"]
[1757233574322,3.61179212,870.47,868.74,0.19974458]
[1757233574323,2.57037592,870.01,868.74,0.19974458]
[1757233574927,2.57037592,869.83,868.74,0.19974458]
[1757233575426,2.57037592,869.82,868.74,0.19974458]
[1757233576424,2.57037592,869.76,868.74,0.19974458]
[1757233577127,2.57037592,869.69,868.74,0.19974458]
[1757233579030,2.57037592,869.68,868.74,0.19974458]
[1757233581627,2.57037592,869.67,868.74,0.19974458]
[1757233582328,2.57037592,869.51,868.74,0.19974458]
[1757233584334,2.57037592,869.52,868.74,0.19974458]
[1757233585334,2.57037592,869.55,868.74,0.19974458]
[1757233585934,2.57037592,869.54,868.74,0.19974458]
[1757233586929,2.57037592,869.47,868.74,0.19974458]
[1757233588529,0.19983462,871.03,868.74,0.19974458]
[1757233588530,2.57037592,869.49,868.74,0.19974458]
[1757233589029,2.57037592,869.7,868.74,0.19974458]
[1757233589432,2.57037592,869.69,868.74,0.19974458]
[1757233590632,2.57037592,869.7,868.74,0.19974458]
[1757233595234,2.57037592,869.76,868.74,0.19974458]
[1757233596834,2.57037592,869.9,868.74,0.19974458]
[1757233598838,2.57037592,869.83,868.74,0.19974458]
[1757233599342,2.57037592,869.82,868.74,0.19974458]
[1757233599943,2.57037592,869.8,868.74,0.19974458]
[1757233600443,2.57037592,869.79,868.74,0.19974458]
[1757233600941,2.57037592,869.82,868.74,0.19974458]
[1757233604546,2.57037592,869.81,868.74,0.19974458]
[1757233605043,2.57037592,869.76,868.74,0.19974458]
[1757233605648,2.57037592,869.75,868.74,0.19974458]
[1757233606649,2.57037592,869.76,868.74,0.19974458]
[1757233607349,2.57037592,869.75,868.74,0.19974458]
[1757233608149,2.57037592,869.76,868.74,0.19974458]
[1757233608749,2.57037592,869.75,868.74,0.19974458]
[1757233609245,2.57037592,869.86,868.74,0.19974458]
[1757233610448,2.57037592,869.84,868.74,0.19974458]
[1757233610853,2.57037592,869.83,868.74,0.19974458]
[1757233612549,2.57037592,869.82,868.74,0.19974458]
[1757233613353,2.57037592,869.8,868.74,0.19974458]
[1757233614052,2.57037592,869.81,868.74,0.19974458]
[1757233614452,2.57037592,869.8,868.74,0.19974458]
[1757233615549,2.57037592,869.79,868.74,0.19974458]
[1757233616649,2.57037592,869.93,868.74,0.19974458]
[1757233617852,2.57037592,869.96,868.74,0.19974458]
[1757233618759,2.57037592,869.9,868.74,0.19974458]
[1757233619661,2.57037592,869.89,868.74,0.19974458]
[1757233620756,2.57037592,869.88,867.68,0.76426087]
[1757233620960,2.57037592,869.88,868.85,0.19991096]
[1757233621159,2.57037592,869.88,867.68,0.76426087]
[1757233621358,2.57037592,869.86,868.95,0.19991096]
[1757233621562,2.57037592,869.86,867.69,0.76426087]
[1757233622359,2.57037592,869.85,867.71,0.76426087]
[1757233622558,2.57037592,869.85,867.71,1.46514725]
[1757233622760,2.57037592,869.85,867.72,0.70088638]
[1757233622963,2.57037592,869.85,868.24,0.19991096]
[1757233623360,2.57037592,869.82,868.24,0.19991096]
[1757233623962,2.57037592,869.81,868.24,0.19991096]
[1757233625566,2.57037592,869.78,868.24,0.19991096]
[1757233626561,2.57037592,869.54,868.24,0.19991096]
[1757233627667,2.57037592,869.39,868.24,0.19991096]
[1757233627963,3.61179212,869.68,868.24,0.19991096]
[1757233629167,3.61179212,869.77,868.24,0.19991096]
[1757233630164,3.61179212,870.22,868.24,0.19991096]
[1757233632268,3.61179212,870.37,868.24,0.19991096]
[1757233633173,3.61179212,870.36,868.24,0.19991096]
[1757233634267,3.61179212,870.38,868.24,0.19991096]
[1757233635272,0.19983462,871.03,868.24,0.19991096]
[1757233635273,3.61179212,870.37,868.24,0.19991096]
[1757233636776,2.57876477,869.92,868.24,0.19991096]
[1757233638379,2.57876477,869.91,868.24,0.19991096]
[1757233639977,2.57876477,869.69,868.24,0.19991096]
[1757233640881,2.57876477,869.86,868.24,0.19991096]
[1757233641681,2.57876477,869.8,868.24,0.19991096]
[1757233641981,2.57876477,869.77,868.24,0.19991096]
[1757233642982,2.57876477,869.82,868.24,0.19991096]
[1757233644185,2.57876477,869.81,868.24,0.19991096]
[1757233646179,2.57876477,869.82,868.24,0.19991096]
[1757233646687,2.57876477,869.78,868.24,0.19991096]
[1757233650989,2.57876477,869.67,868.24,0.19991096]
[1757233651489,2.57876477,869.49,868.24,0.19991096]
[1757233651989,2.57876477,869.48,868.24,0.19991096]
[1757233652587,2.57876477,869.28,868.24,0.19991096]
[1757233652787,3.61179212,869.85,868.24,0.19991096]
[1757233653089,3.61179212,869.67,868.24,0.19991096]
[1757233654084,3.61179212,869.63,868.24,0.19991096]
[1757233655289,3.61179212,870.47,868.24,0.19991096]
[1757233656192,3.61179212,870.43,868.24,0.19991096]
[1757233657288,3.61179212,870.55,868.24,0.19991096]
[1757233658188,3.61179212,870.51,868.24,0.19991096]
[1757233659288,3.61179212,870.5,868.24,0.19991096]
[1757233660492,3.61179212,870.57,868.24,0.19991096]
[1757233661389,0.19983462,871.03,868.24,0.19991096]
[1757233661390,3.61179212,870.78,868.24,0.19991096]
[1757233661789,2.57967069,870.21,868.24,0.19991096]
[1757233662289,2.57967069,870.04,868.24,0.19991096]
[1757233662793,2.57967069,870.02,868.24,0.19991096]
[1757233663293,2.57967069,870.03,868.24,0.19991096]
[1757233663994,2.57967069,869.95,868.24,0.19991096]
[1757233664493,2.57967069,869.96,868.24,0.19991096]
[1757233664892,2.57967069,869.95,868.24,0.19991096]
[1757233667589,2.57967069,869.94,868.24,0.19991096]
[1757233668092,2.57967069,869.88,868.24,0.19991096]
[1757233668595,2.57967069,869.89,868.24,0.19991096]
[1757233669193,2.57967069,869.88,868.24,0.19991096]
[1757233669591,2.57967069,869.89,868.24,0.19991096]
[1757233670794,2.57967069,869.64,868.24,0.19991096]
[1757233672195,2.57967069,869.62,868.24,0.19991096]
[1757233672795,2.57967069,869.58,868.24,0.19991096]
[1757233673298,2.57967069,869.6,868.24,0.19991096]
[1757233674298,2.57967069,869.62,868.24,0.19991096]
[1757233675900,2.57967069,869.63,868.24,0.19991096]
[1757233676496,2.57967069,869.69,868.24,0.19991096]
[1757233677100,2.57967069,869.71,868.24,0.19991096]
[1757233679497,2.57967069,869.7,868.24,0.19991096]
[1757233680495,2.57967069,869.66,868.24,0.19991096]
[1757233681601,2.57967069,869.67,868.24,0.19991096]
[1757233682597,2.57967069,869.66,868.24,0.19991096]
[1757233683102,2.57967069,869.62,868.24,0.19991096]
[1757233683701,2.57967069,869.55,868.24,0.19991096]
[1757233684302,2.57967069,869.53,868.24,0.19991096]
[1757233685301,2.57967069,869.59,868.24,0.19991096]
[1757233685701,2.57967069,869.58,868.24,0.19991096]
[1757233686201,2.57967069,869.43,868.24,0.19991096]
[1757233686805,2.57967069,869.39,868.24,0.19991096]
[1757233687401,2.57967069,869.41,868.24,0.19991096]
[1757233688902,2.57967069,869.46,868.24,0.19991096]
[1757233690401,3.61179212,869.85,868.24,0.19991096]
[1757233690605,2.57967069,870.2,868.24,0.19991096]
[1757233691701,2.57967069,870.22,868.24,0.19991096]
[1757233692106,2.57967069,870.38,868.24,0.19991096]
[1757233692606,2.57967069,870.39,868.24,0.19991096]
[1757233693606,2.57967069,870.4,868.24,0.19991096]
[1757233694705,2.57967069,870.37,868.24,0.19991096]
[1757233695108,3.61179212,871.01,868.24,0.19991096]
[1757233695109,2.57967069,870.17,868.24,0.19991096]
[1757233696205,2.57967069,870.14,868.24,0.19991096]
[1757233696905,2.57967069,870.01,868.24,0.19991096]
[1757233697210,2.57967069,869.92,868.24,0.19991096]
[1757233698206,2.57967069,869.86,868.24,0.19991096]
[1757233698807,2.57967069,869.82,868.24,0.19991096]
[1757233699410,2.57967069,869.72,868.24,0.19991096]
[1757233699806,2.57967069,869.71,868.24,0.19991096]
[1757233702013,2.57967069,869.57,868.24,0.19991096]
[1757233702510,2.57967069,869.02,868.24,0.19991096]
[1757233703513,2.57967069,869.03,868.24,0.19991096]
[1757233704013,2.57967069,868.94,868.24,0.19991096]
[1757233704215,1.14464049,868.94,868.24,0.19991096]
[1757233704613,3.61179212,869.24,868.24,0.19991096]
[1757233705309,3.61179212,869.29,868.24,0.19991096]
[1757233706114,3.61179212,869.36,868.24,0.19991096]
[1757233707111,3.61179212,869.37,868.24,0.19991096]
[1757233708317,3.61179212,869.38,868.24,0.19991096]
[1757233709322,3.61179212,869.39,868.24,0.19991096]
[1757233710422,3.61179212,869.41,868.24,0.19991096]
[1757233711422,3.61179212,869.44,868.24,0.19991096]
[1757233712421,3.61179212,869.4,868.24,0.19991096]
[1757233713322,2.57018102,869.23,868.24,0.19991096]
[1757233714822,2.57018102,869.24,868.24,0.19991096]
[1757233715221,2.57018102,869.23,868.24,0.19991096]
[1757233715821,2.57018102,869.36,868.24,0.19991096]
[1757233717526,2.57018102,869.54,868.24,0.19991096]
[1757233718023,2.57018102,869.56,868.24,0.19991096]
[1757233720428,2.57018102,869.63,868.24,0.19991096]
[1757233722627,2.57018102,869.6,868.24,0.19991096]
[1757233723127,2.57018102,869.62,868.24,0.19991096]
[1757233724025,2.57018102,869.69,868.24,0.19991096]
[1757233724825,2.57018102,869.74,868.24,0.19991096]
[1757233725329,2.57018102,869.71,868.24,0.19991096]
[1757233725829,2.57018102,869.87,868.24,0.19991096]
[1757233727027,2.57018102,869.8,868.24,0.19991096]
[1757233729433,2.57018102,869.78,868.24,0.19991096]
[1757233730533,2.57018102,869.74,868.24,0.19991096]
[1757233730930,3.61179212,870.27,868.24,0.19991096]
[1757233730931,2.57018102,869.78,868.24,0.19991096]
[1757233731530,2.57018102,869.77,868.24,0.19991096]
[1757233733329,2.57018102,869.75,868.24,0.19991096]
[1757233733629,2.57018102,869.7,868.24,0.19991096]
[1757233734233,2.57018102,869.69,868.24,0.19991096]
[1757233734733,2.57018102,869.66,868.24,0.19991096]
[1757233735834,2.57018102,869.44,868.24,0.19991096]
[1757233736230,2.57018102,869.42,868.24,0.19991096]
[1757233736729,2.57018102,869.46,868.24,0.19991096]
[1757233737330,2.57018102,869.45,868.24,0.19991096]
[1757233737733,2.57018102,869.43,868.24,0.19991096]
[1757233738433,2.57018102,869.4,868.24,0.19991096]
[1757233739430,2.57018102,869.35,868.24,0.19991096]
[1757233741032,2.57018102,869.22,868.24,0.19991096]
[1757233741931,2.57018102,869.37,868.24,0.19991096]
[1757233742430,2.57018102,869.55,868.24,0.19991096]
[1757233743432,2.57018102,869.54,868.24,0.19991096]
[1757233744535,2.57018102,869.53,868.24,0.19991096]
[1757233745636,2.57018102,869.46,868.24,0.19991096]
[1757233746033,2.57018102,869.45,868.24,0.19991096]
[1757233746638,2.57018102,869.44,868.24,0.19991096]
[1757233747738,2.57018102,869.43,868.24,0.19991096]
[1757233748235,2.57018102,869.42,868.24,0.19991096]
[1757233748733,2.57018102,869.41,868.24,0.19991096]
[1757233749734,2.57018102,869.38,868.24,0.19991096]
[1757233750335,2.57018102,869.36,868.24,0.19991096]
[1757233750740,2.57018102,869.33,868.24,0.19991096]
[1757233751235,2.57018102,869.31,868.24,0.19991096]
[1757233751739,2.57018102,869.29,868.24,0.19991096]
[1757233752441,2.57018102,869.52,868.24,0.19991096]
[1757233753036,2.57018102,869.48,868.24,0.19991096]
[1757233753941,2.57018102,869.46,868.24,0.19991096]
[1757233754441,2.57018102,869.45,868.24,0.19991096]
[1757233755438,2.57018102,869.44,868.24,0.19991096]
[1757233756438,2.57018102,869.43,868.24,0.19991096]
[1757233757442,2.57018102,869.42,868.24,0.19991096]
[1757233757942,2.57018102,869.41,868.24,0.19991096]
[1757233758744,2.57018102,869.45,868.24,0.19991096]
[1757233759638,2.57018102,869.44,868.24,0.19991096]
[1757233760745,2.57018102,869.43,868.24,0.19991096]
[1757233761143,2.57018102,869.69,868.24,0.19991096]
[1757233761740,2.57018102,869.68,868.24,0.19991096]
[1757233762239,2.57018102,869.64,868.24,0.19991096]
[1757233762742,2.57018102,869.63,868.24,0.19991096]
[1757233764047,1.54961009,868.52,868.24,0.19991096]
[1757233764249,2.57018102,869.58,868.24,0.19991096]
[1757233764546,2.57018102,869.58,867.2,0.76499024]
[1757233765148,2.57018102,869.58,867.25,0.76499024]
[1757233765349,2.57018102,869.62,867.25,0.76499024]
[1757233766048,2.57018102,869.62,867.25,1.44663682]
[1757233766249,2.57018102,869.62,867.26,0.68164658]
[1757233766545,2.57018102,869.62,867.27,0.68164658]
[1757233766844,2.57018102,869.62,867.28,0.68164658]
[1757233767144,2.57018102,869.62,867.29,0.68164658]
[1757233767445,2.57018102,869.62,867.3,0.68164658]
[1757233767647,2.57018102,869.62,867.31,0.68164658]
[1757233767944,2.57018102,869.62,867.32,0.68164658]
[1757233768148,2.57018102,869.62,867.33,0.68164658]
[1757233768444,2.57018102,869.59,867.34,0.68164658]
[1757233768647,2.57018102,869.59,867.35,0.68164658]
[1757233768844,2.57018102,869.59,867.36,0.68164658]
[1757233769048,2.57018102,869.59,867.37,0.68164658]
[1757233769245,2.57018102,869.59,867.38,0.68164658]
[1757233769446,2.57018102,869.59,867.39,0.68164658]
[1757233769645,2.57018102,869.59,867.4,0.68164658]
[1757233769944,2.57018102,869.6,867.41,0.68164658]
[1757233770147,2.57018102,869.6,867.42,0.68164658]
[1757233770346,2.57018102,869.6,867.43,0.68164658]
[1757233770646,2.57018102,869.6,867.44,0.68164658]
[1757233770945,2.57018102,869.6,867.45,0.68164658]
[1757233771145,2.57018102,869.36,867.46,0.68164658]
[1757233771348,2.57018102,869.36,867.47,0.68164658]
[1757233771545,2.57018102,869.36,867.29,0.76499024]
[1757233771546,2.57018102,869.36,867.48,0.68164658]
[1757233771750,2.57018102,869.36,867.49,0.68164658]
[1757233771947,2.57018102,869.36,867.5,0.68164658]
[1757233772149,2.57018102,869.04,867.51,0.68164658]
[1757233772449,2.57018102,869.04,867.52,0.68164658]
[1757233772647,2.57018102,869.0,867.53,0.68164658]
[1757233772851,2.57018102,869.0,867.54,0.68164658]
[1757233773048,2.57018102,869.0,867.55,0.68164658]
[1757233773252,2.57018102,869.0,867.56,0.68164658]
[1757233773452,2.57018102,869.0,867.57,0.68164658]
[1757233773657,2.57018102,869.01,867.58,0.68164658]
[1757233773851,2.57018102,869.01,867.59,0.68164658]
[1757233774056,2.57018102,869.01,867.6,0.68164658]
[1757233774351,2.57018102,869.01,867.61,0.68164658]
[1757233774550,2.57018102,869.12,867.62,0.68164658]
[1757233774756,2.57018102,869.12,869.01,0.03448662]
[1757233774953,2.57018102,869.12,867.32,0.76499024]
[1757233775754,2.57018102,869.13,867.32,0.76499024]
[1757233776057,2.57018102,869.13,867.76,0.20003276]
[1757233776852,2.57018102,869.12,867.76,0.20003276]
[1757233780357,2.57018102,869.2,867.76,0.20003276]
[1757233780657,2.57018102,869.2,867.77,0.69693027]
[1757233780863,3.61179212,869.63,867.78,0.69693027]
[1757233781061,3.61179212,869.63,867.76,0.20003276]
[1757233781062,2.57018102,870.25,867.79,0.69693027]
[1757233781258,7.94710671,870.28,867.8,0.69693027]
[1757233781554,7.94710671,870.28,867.76,0.20003276]
[1757233781555,7.94710671,870.28,867.81,0.69693027]
[1757233781760,7.94710671,870.28,867.82,0.69693027]
[1757233781957,7.94710671,870.28,867.83,0.69693027]
[1757233782161,2.77019539,870.28,867.84,0.69693027]
[1757233782360,2.77019539,870.28,867.76,0.20003276]
[1757233782660,2.77019539,870.28,867.77,0.69637313]
[1757233782860,2.77019539,870.28,867.78,0.69637313]
[1757233783056,2.77019539,870.28,867.79,0.69637313]
[1757233783261,2.77019539,870.28,867.8,0.69637313]
[1757233783457,0.20001437,870.28,867.81,0.69637313]
[1757233783761,0.20001437,870.28,867.82,0.69637313]
[1757233784060,0.20001437,870.28,867.83,0.69637313]
[1757233784261,0.20001437,870.28,867.76,0.20003276]
[1757233784559,0.20001437,870.28,867.77,0.69621664]
[1757233784858,2.57018102,870.31,867.78,0.69621664]
[1757233785055,2.57018102,870.31,867.79,0.69621664]
[1757233785256,2.57018102,870.31,867.8,0.69621664]
[1757233785459,2.57018102,870.32,867.81,0.69621664]
[1757233785658,2.57018102,870.32,867.82,0.69621664]
[1757233785861,2.57018102,870.32,867.76,0.20003276]
[1757233786061,2.57018102,870.32,867.77,0.69615631]
[1757233786263,2.57018102,870.32,867.78,0.69615631]
[1757233786460,2.57018102,870.31,867.79,0.69615631]
[1757233786660,2.57018102,870.31,867.8,0.69615631]
[1757233786956,2.57018102,870.31,867.81,0.69615631]
[1757233787158,2.57018102,870.31,867.76,0.20003276]
[1757233787362,2.57018102,870.31,867.77,0.69606348]
[1757233787562,2.57018102,870.31,867.78,0.69606348]
[1757233787761,0.19995576,870.29,867.79,0.69606348]
[1757233787959,0.19995576,870.29,867.76,0.20003276]
[1757233787960,0.19995576,870.29,867.8,0.69606348]
[1757233788164,2.57018102,870.16,867.76,0.20003276]
[1757233788463,2.57018102,870.16,867.77,0.69602294]
[1757233788657,2.57018102,870.17,867.78,0.69602294]
[1757233788860,2.57018102,870.17,867.79,0.69602294]
[1757233789060,2.57018102,870.11,867.76,0.20003276]
[1757233789360,2.57018102,870.11,867.77,0.69601782]
[1757233789560,2.57018102,870.11,867.78,0.69601782]
[1757233789760,2.57018102,870.09,867.79,0.69601782]
[1757233789961,2.57018102,870.09,867.76,0.20003276]
[1757233790159,2.57018102,870.07,867.77,0.6959796]
[1757233790363,2.57018102,870.07,867.76,0.20003276]
[1757233790663,3.61179212,869.92,867.76,0.20003276]
[1757233790863,2.57018102,869.39,867.76,0.20003276]
[1757233791163,2.57018102,869.39,867.77,0.69592737]
[1757233791361,3.61179212,869.92,867.78,0.69592737]
[1757233791560,2.57018102,870.22,867.79,0.69592737]
[1757233791759,2.57018102,870.22,867.8,0.69592737]
[1757233792063,2.57018102,870.22,867.81,0.69592737]
[1757233792263,2.57018102,870.22,867.76,0.20003276]
[1757233792463,2.57018102,870.22,867.77,0.69578817]
[1757233792663,2.57018102,870.22,867.78,0.69578817]
[1757233792863,2.57018102,870.17,867.79,0.69578817]
[1757233793065,2.57018102,870.17,867.8,0.69578817]
[1757233793365,2.57018102,870.15,867.76,0.20003276]
[1757233793563,2.57018102,870.15,867.77,0.69574393]
[1757233793765,2.57018102,870.15,867.78,0.69574393]
[1757233793964,2.57018102,870.15,867.76,0.20003276]
[1757233793965,2.57018102,870.37,867.79,0.69574393]
[1757233794165,2.57018102,870.37,867.8,0.69574393]
[1757233794363,2.57018102,870.37,867.81,0.69574393]
[1757233794563,2.57018102,870.37,867.82,0.69574393]
[1757233794870,2.57018102,870.37,867.83,0.69574393]
[1757233795064,2.57018102,870.37,867.84,0.69574393]
[1757233795263,2.57018102,870.37,867.85,0.69574393]
[1757233795466,2.57018102,870.38,867.76,0.20003276]
[1757233795667,2.57018102,870.38,867.77,0.69548773]
[1757233795865,2.57018102,870.38,867.78,0.69548773]
[1757233796064,2.57018102,870.38,867.79,0.69548773]
[1757233796265,2.57018102,870.38,867.8,0.69548773]
[1757233796562,2.57018102,870.38,867.81,0.69548773]
[1757233796765,2.57018102,870.38,867.82,0.69548773]
[1757233797065,2.57018102,870.38,867.83,0.69548773]
[1757233797264,2.57018102,870.38,867.84,0.69548773]
[1757233797565,2.57018102,870.39,867.25,0.76499024]
[1757233798373,2.57018102,870.39,867.26,0.69536074]
[1757233798568,2.57018102,870.39,867.27,0.69536074]
[1757233798769,2.57018102,870.39,867.28,0.69536074]
[1757233799071,2.57018102,870.39,867.29,0.69536074]
[1757233799270,2.57018102,870.39,867.3,0.69536074]
[1757233799472,2.57018102,870.39,867.31,0.69536074]
[1757233799671,2.57018102,870.4,867.32,0.69536074]
[1757233799871,2.57018102,870.4,867.33,0.69536074]
[1757233800070,3.61179212,871.07,867.94,0.76499024]
[1757233800472,3.61179212,871.07,868.03,0.76499024]
[1757233800675,0.19982315,870.7,868.25,0.76499024]
[1757233801072,0.19982315,870.7,868.14,0.19982315]
[1757233801073,0.19982315,870.7,868.26,1.46035098]
[1757233801372,0.19982315,870.7,868.27,0.69536074]
[1757233801668,0.19982315,870.7,868.28,0.69536074]
[1757233801872,0.19982315,870.7,868.29,0.69536074]
[1757233802172,0.19982315,870.7,868.3,0.69536074]
[1757233802370,0.19982315,870.7,868.31,0.69536074]
[1757233802567,0.19982315,870.7,868.32,0.69536074]
[1757233802767,0.19982315,870.7,868.33,0.69536074]
[1757233803068,0.19982315,870.7,868.34,0.69536074]
[1757233803271,0.19982315,870.7,868.35,0.69536074]
[1757233803574,0.19982315,870.7,868.36,0.69536074]
[1757233803771,0.19982315,870.7,868.37,0.69536074]
[1757233803969,0.19982315,870.7,868.38,0.69536074]
[1757233804171,0.19982315,870.7,868.39,0.69536074]
[1757233804469,0.19982315,870.7,868.4,0.69536074]
[1757233804673,3.61179212,871.27,868.41,0.69536074]
[1757233804874,3.61179212,871.27,868.26,0.76499024]
[1757233804875,2.57018102,871.3,868.42,0.69536074]
[1757233805072,2.57018102,871.3,868.43,0.69536074]
[1757233805274,2.57018102,871.32,868.44,0.69536074]
[1757233805469,2.57018102,871.32,868.45,0.69536074]
[1757233805773,2.57018102,871.35,868.46,0.69536074]
[1757233806071,2.57018102,871.35,868.47,0.69536074]
[1757233806270,2.57018102,871.37,868.48,0.69536074]
[1757233806572,2.57018102,871.37,868.49,0.69536074]
[1757233806769,2.57018102,871.37,868.5,0.69536074]
[1757233806974,2.57018102,871.37,868.51,0.69536074]
[1757233807274,2.57018102,871.37,868.52,0.69536074]
[1757233807574,2.57018102,871.4,868.53,0.69536074]
[1757233807771,0.19976006,870.81,868.54,0.69536074]
[1757233808071,0.19976006,870.81,868.55,0.69536074]
[1757233808270,0.19976006,870.81,868.28,0.76499024]
[1757233808271,0.19976006,870.81,868.56,0.69536074]
[1757233808473,0.19976006,870.81,868.57,0.69536074]
[1757233808672,0.19976006,870.81,868.58,0.69536074]
[1757233808871,0.19976006,870.81,868.59,0.69536074]
[1757233809070,0.19976006,870.81,868.6,0.69536074]
[1757233809274,0.19976006,870.81,868.61,0.69536074]
[1757233809472,0.19976006,870.81,868.62,0.69536074]
[1757233809673,0.19976006,870.81,868.63,0.69536074]
[1757233809973,0.19976006,870.81,868.64,0.69536074]
[1757233810176,0.19976006,870.81,868.65,0.69536074]
[1757233810477,0.19976006,870.81,868.66,0.69536074]
[1757233810677,0.19976006,870.81,868.67,0.69536074]
[1757233810973,0.19976006,870.81,868.68,0.69536074]
[1757233811172,0.19976006,870.81,868.69,0.69536074]
[1757233811472,0.19976006,870.81,868.7,0.69536074]
[1757233811779,0.19976006,870.81,868.71,0.69536074]
[1757233811972,0.19976006,870.81,868.72,0.69536074]
[1757233812172,2.57018102,870.91,868.73,0.69536074]
[1757233812379,2.57018102,870.91,868.74,0.69536074]
[1757233812577,0.19976465,870.93,868.75,0.69536074]
[1757233812779,0.19976465,870.93,868.57,0.76499024]
[1757233812780,0.19976465,870.93,868.76,0.69536074]
[1757233812984,0.19976465,870.93,868.77,0.69536074]
[1757233813181,0.19976465,870.93,868.78,0.69536074]
[1757233813379,0.19976465,870.93,868.79,0.69536074]
[1757233813683,0.19976465,870.93,868.8,0.69536074]
[1757233813879,0.19976465,870.93,868.81,0.69536074]
[1757233814079,0.19976465,870.93,868.82,0.69536074]
[1757233814282,0.19976465,870.93,868.83,0.69536074]
[1757233814484,0.19976465,870.93,868.84,0.69536074]
[1757233814786,0.19976465,870.93,868.85,0.69536074]
[1757233814980,0.19976465,870.93,868.86,0.69536074]
[1757233815184,0.19976465,870.93,868.41,1.0182409]
[1757233815185,0.19976465,870.93,868.87,0.69536074]
[1757233815384,0.19976465,870.93,868.88,0.69536074]
[1757233815583,0.19976465,870.93,868.89,0.69536074]
[1757233815780,0.19976465,870.93,868.9,0.69536074]
[1757233815984,0.19976465,870.93,868.91,0.69536074]
[1757233816181,2.57018102,871.08,868.92,0.69536074]
[1757233816381,0.19973082,871.03,868.93,0.69536074]
[1757233816584,0.19973082,871.03,868.94,0.69536074]
[1757233816783,0.19973082,871.03,868.95,0.69536074]
[1757233817085,0.19973082,871.03,868.96,0.69536074]
[1757233817285,0.19973082,871.03,868.97,0.69536074]
[1757233817484,0.19973082,871.03,868.98,0.69223793]
[1757233817685,0.19973082,871.03,868.99,0.69223793]
[1757233817884,0.19973082,871.03,869.0,0.69223793]
[1757233818083,0.19973082,871.03,868.65,0.76499024]
[1757233818084,0.19973082,871.03,869.01,0.69215993]
[1757233818284,0.19973082,871.03,869.02,0.69215993]
[1757233818484,0.19973082,871.03,869.03,0.69215993]
[1757233818682,0.19973082,871.03,868.69,0.76499024]
[1757233818981,0.19973082,871.03,868.72,0.76499024]
[1757233819181,0.19973082,871.03,868.73,1.45698887]
[1757233819381,0.19973082,871.03,868.74,0.69199863]
[1757233819582,0.19973082,871.03,868.75,0.69199863]
[1757233819782,0.19973082,871.03,868.76,0.69199863]
[1757233819987,0.19973082,871.03,868.77,0.69199863]
[1757233820185,2.57018102,871.25,868.78,0.69199863]
[1757233820384,0.19971592,871.13,868.79,0.69199863]
[1757233820683,0.19971592,871.13,868.8,0.69199863]
[1757233820888,0.19971592,871.13,868.81,0.69199863]
[1757233821087,0.19971592,871.13,868.82,0.69199863]
[1757233821285,0.19971592,871.13,868.83,0.69199863]
[1757233821487,0.19971592,871.13,868.84,0.69199863]
[1757233821691,0.19971592,871.13,868.85,0.69199863]
[1757233821888,0.19971592,871.13,868.86,0.69199863]
[1757233822191,0.19971592,871.13,868.87,0.69199863]
[1757233822387,2.57018102,871.44,868.88,0.69199863]
[1757233822589,0.19967639,871.25,868.89,0.69199863]
[1757233822788,0.19967639,871.25,868.9,0.69199863]
[1757233822987,0.19967639,871.25,868.91,0.69199863]
[1757233823192,0.19967639,871.25,868.92,0.69199863]
[1757233823492,0.19967639,871.25,868.93,0.69199863]
[1757233823689,0.19967639,871.25,868.94,0.69199863]
[1757233823889,0.19967639,871.25,868.95,0.69199863]
[1757233824089,0.19967639,871.25,868.96,0.69199863]
[1757233824289,0.19967639,871.25,868.97,0.69199863]
[1757233824492,0.19967639,871.25,868.98,0.69199863]
[1757233824690,0.19967639,871.25,868.99,0.69199863]
[1757233824890,0.19967639,871.25,869.0,0.69199863]
[1757233825089,0.19967639,871.25,868.58,0.76499024]
[1757233825390,0.19967639,871.25,868.59,0.69034177]
[1757233825588,0.19967639,871.25,868.59,1.45533201]
[1757233825788,0.19967639,871.25,868.6,0.69034177]
[1757233825990,0.19967639,871.25,868.61,0.69034177]
[1757233826189,0.19967639,871.25,868.62,0.69034177]
[1757233826389,0.19967639,871.25,868.63,0.69034177]
[1757233826593,2.57018102,870.97,868.64,0.69034177]
[1757233826795,2.57018102,870.97,868.65,0.69034177]
[1757233827091,1.53173905,870.3,868.66,0.69034177]
[1757233827289,1.53173905,870.3,868.67,0.69034177]
[1757233827491,1.53173905,870.3,868.68,0.69034177]
[1757233827694,1.53173905,870.3,868.69,0.69034177]
[1757233827993,1.53173905,870.28,868.7,0.69034177]
[1757233828193,1.53173905,870.28,868.71,0.69034177]
[1757233828393,1.53173905,870.28,868.72,0.69034177]
[1757233828594,1.53173905,870.41,868.73,0.69034177]
[1757233828790,1.53173905,870.38,868.27,0.76499024]
[1757233829095,1.53173905,870.24,868.28,0.68151479]
[1757233829295,1.53173905,870.25,868.29,0.68151479]
[1757233829591,1.53173905,870.21,868.3,0.68151479]
[1757233829796,1.53173905,870.14,868.31,0.68151479]
[1757233830094,1.53173905,870.06,868.32,0.68151479]
[1757233830294,1.53173905,870.08,868.33,0.68151479]
[1757233830495,1.53173905,870.04,868.34,0.68151479]
[1757233830696,1.46954587,870.03,868.35,0.68151479]
[1757233830894,1.46954587,870.03,868.36,0.68151479]
[1757233831096,2.57018102,870.72,868.37,0.68151479]
[1757233831394,2.57018102,870.72,868.38,0.68151479]